[Event "Marshall Masters 44"]
[Site "New York"]
[Date "2024.12.18"]
[Round "2.2"]
[White "Lenderman, Aleksandr"]
[Black "Chasin, Nico"]
[Result "1-0"]
[ECO "D37"]
[WhiteElo "2480"]
[BlackElo "2417"]
[Annotator "TA"]
[PlyCount "73"]
[EventDate "2024.12.17"]
[EventType "swiss"]
[EventCountry "USA"]
[SourceTitle "playchess.com"]
[Source "ChessBase"]
[SourceQuality "1"]
[TimeMode "Bronstein"]
[TimeControl "1500+5"]

{[%evp 9,73,13,35,17,47,37,44,28,33,43,25,25,29,12,27,25,22,13,14,0,50,48,71,-54,66,62,63,59,77,58,72,59,197,212,222,204,222,229,545,95,85,118,347,354,341,335,353,356,564,562,559,542,745,745,1314,1335,1346,1270,1532,1501,29982,9546,29993,29994,29995,29996]} 1. d4 {[%emt 0:00:05]} e6 {[%emt 0:00:05]} 2. c4 {[%emt 0:00:21]} Nf6 {[%emt 0:00:05]} 3. Nf3 {[%emt 0:00:07]} h6 {[%emt 0:00:05]} 4. e3 {[%emt 0:00:49]} d5 {[%emt 0:01:09]} 5. Nc3 {[%emt 0:00:09]} a6 {[%emt 0:00:27]} 6. b3 {[%emt 0:00:26]} Nbd7 {[%emt 0:00:24]} 7. Bb2 {[%emt 0:00:05]} b6 {[%emt 0:00:11]} 8. cxd5 {[%emt 0:00:36] White is slightly better.} exd5 {[%emt 0:00:05]} 9. Bd3 {[%emt 0:00:06]} Bd6 {[%emt 0:00:05] Repels Ne5} 10. O-O {[%emt 0:00:05]} O-O {[%emt 0:00:05]} 11. Rc1 {[%emt 0:01:33]} Bb7 {[%emt 0:00:05]} 12. Ne2 {[%emt 0:00:29]} Qe7 {[%emt 0:00:05]} 13. Nf4 {[%emt 0:01:32]} Ne4 {[%emt 0:00:40]} 14. Qc2 {[%emt 0:00:25][%cal Of3e5]} Rfe8 {[%emt 0:01:31] [#]} (14... c6 $11) 15. Ne5 $1 $14 {[%emt 0:00:35][%cal Of4d5]} Ndf6 {[%emt 0:03:09]} (15... c5 16. Bxe4) 16. Nc6 {[%emt 0:02:48]} ({Better is} 16. f3 $16 Nc5 17. Bf5) 16... Qd7 {[%emt 0:00:15]} ({Black should try} 16... Bxc6 $15 17. Bxe4 (17. Qxc6 $2 Nxf2 18. Rxf2 Qxe3 $19) 17... Qxe4 18. Qxc6 Rac8) 17. f3 {[%emt 0:01:23]} Ng5 {[%emt 0:01:53][%cal Ob7c6]} 18. Ne5 {[%emt 0:01:54]} Qe7 {[%emt 0:00:05]} 19. Rfe1 {[%emt 0:00:20]} c5 {[%emt 0:00:12]} 20. Bf5 {[%emt 0:00:25]} g6 {[%emt 0:00:36]} ({Black should play} 20... Bc8 $14) 21. h4 {[%emt 0:00:53]} gxf5 {[%emt 0:00:24]} 22. hxg5 {[%emt 0:00:05]} hxg5 {[%emt 0:00:18] [#]} 23. Qxf5 {[%emt 0:00:57]} Nh7 {[%emt 0:00:50] [#]} (23... gxf4 24. exf4 Qd8 25. Qg5+ Kf8) 24. Nh5 $2 {[%emt 0:00:40] A dynamic duo of knights.} (24. Ng4 $1 $18 {[%cal Rg4h6] and the rest is easy.} Bc8 (24... gxf4 $2 {too greedy.} 25. dxc5 Qe6 26. cxd6 $18) 25. Nh6+ (25. Qxd5 $2 Bxg4 26. fxg4 gxf4 $19) 25... Kh8 26. Nxf7+ (26. Qxd5 Bxf4 27. exf4 Be6 $18) (26. dxc5+ f6 $18) 26... Kg8 27. Nh6+ (27. Qxd5 Qxf7 28. Qxd6 gxf4 $18) 27... Kh8 28. dxc5+ (28. Qxd5 Qf6 $18) 28... d4 29. cxd6 (29. Bxd4+ Be5 $18) 29... Bxf5 30. dxe7) 24... Bc8 $16 {[%emt 0:02:18]} 25. Qd3 {[%emt 0:00:05] White has more active pieces. The black rooks are passive.} Nf6 $2 {[%emt 0:01:33]} (25... g4 $16 {is a better defense.}) 26. Nc6 $18 {[%emt 0:00:19]} Bh2+ {[%emt 0:00:44]} 27. Kxh2 {[%emt 0:00:52]} Qd6+ {[%emt 0:00:05]} 28. Ng3 {[%emt 0:00:17]} c4 {[%emt 0:01:11]} (28... Qxc6 $142 29. dxc5 Re6) 29. bxc4 {[%emt 0:00:21]} Qxc6 {[%emt 0:00:05]} 30. cxd5 {[%emt 0:00:20]} Qxd5 {[%emt 0:00:05]} 31. e4 {[%emt 0:00:15]} Qxa2 {[%emt 0:00:05]} 32. Qd2 {[%emt 0:00:12]} Nh7 {[%emt 0:00:05]} 33. d5 {[%emt 0:00:12]} Bd7 {[%emt 0:00:39]} 34. Nh5 {[%emt 0:00:18] Nf6+ is the strong threat.} Rac8 {[%emt 0:02:49]} 35. Nf6+ {[%emt 0:00:10]} Nxf6 {[%emt 0:00:05]} 36. Qxg5+ {[%emt 0:00:05]} Kh7 {[%emt 0:00:11]} 37. Bxf6 {[%emt 0:00:05] Weighted Error Value: White=0.22 (precise) /Black=0.80.  Loses game:     	---       	Black=1      Missed win:     	White=1     	---        Mistake:       	White=1     	Black=5      Inaccurate:     	---       	Black=3      OK:         	White=11    	Black=8      Best:        	White=1     	Black=1      Brilliant:      	White=1     	---} 1-0

[Event "Marshall Masters 44"]
[Site "New York"]
[Date "2024.12.18"]
[Round "2.3"]
[White "Tanenbaum, Zachary"]
[Black "Zeltsan, Joseph"]
[Result "0-1"]
[ECO "B00"]
[WhiteElo "2297"]
[BlackElo "2405"]
[Annotator "TA"]
[PlyCount "88"]
[EventDate "2024.12.17"]
[EventType "swiss"]
[EventCountry "USA"]
[SourceTitle "playchess.com"]
[Source "ChessBase"]
[SourceQuality "1"]
[TimeMode "Bronstein"]
[TimeControl "1500+5"]

{[%evp 9,88,57,50,36,48,41,56,57,60,30,30,19,36,26,37,0,0,0,0,0,35,-19,-16,-49,-17,-54,0,-95,-81,-113,-117,-104,-118,-130,-135,-128,-154,-133,-124,-139,-115,-90,-80,-102,-104,-671,-702,-892,-930,-892,-922,-900,-899,-793,-493,-894,-892,-868,-885,-833,-768,-742,-1001,-995,-833,-1002,-1002,-1470,-1449,-6203,-6352,-29989,-29990,-29989,-29989,-29989,-29990,-29990,-29991,-29991,-423]} 1. e4 {[%emt 0:00:05]} Nc6 {[%emt 0:00:31]} 2. Nf3 {[%emt 0:00:05]} d6 {[%emt 0:00:13]} 3. d4 {[%emt 0:00:05]} Nf6 {[%emt 0:00:05]} 4. Nc3 {[%emt 0:00:05]} a6 {[%emt 0:00:22]} 5. d5 {[%emt 0:00:33]} Nb8 {[%emt 0:01:24]} 6. h3 {[%emt 0:00:05]} e5 {[%emt 0:00:10]} 7. a4 {[%emt 0:00:30]} a5 {[%emt 0:01:17]} 8. Bc4 {[%emt 0:00:47]} Be7 {[%emt 0:00:12]} 9. O-O {[%emt 0:00:29]} h6 {[%emt 0:01:00]} 10. Nh2 {[%emt 0:01:27]} Nbd7 {[%emt 0:01:35]} 11. Bb5 {[%emt 0:00:08]} O-O {[%emt 0:00:05]} 12. Bd3 {[%emt 0:02:47]} Nh7 {[%emt 0:01:58]} 13. Ng4 {[%emt 0:03:41]} Bg5 {[%emt 0:00:13]} 14. Bxg5 {[%emt 0:00:36]} hxg5 {[%emt 0:01:15] Black is weak on the light squares} 15. Ne3 {[%emt 0:00:21]} (15. Qd2 $14) 15... g6 $11 {[%emt 0:00:12]} 16. Nb5 {[%emt 0:02:08]} Kg7 {[%emt 0:01:24]} 17. c3 {[%emt 0:00:26]} Ndf6 {[%emt 0:00:20]} ({Better is} 17... Nhf6 $1 $15) 18. Qc2 {[%emt 0:01:12]} (18. g4 $11 {remains equal.}) 18... Nh5 $17 {[%emt 0:00:27]} 19. Be2 {[%emt 0:00:15]} Nf4 {[%emt 0:01:31][%cal Oc8h3]} 20. Bg4 {[%emt 0:00:15]} c6 {[%emt 0:00:14]} 21. dxc6 {[%emt 0:00:13]} bxc6 {[%emt 0:00:05]} 22. Na3 {[%emt 0:00:12]} d5 {[%emt 0:01:09]} 23. Rad1 {[%emt 0:00:23]} Nf6 {[%emt 0:00:05]} 24. Bxc8 {[%emt 0:01:24]} Qxc8 {[%emt 0:00:14]} 25. exd5 {[%emt 0:00:14]} cxd5 {[%emt 0:00:47]} 26. f3 {[%emt 0:00:42]} Rh8 {[%emt 0:00:09][%cal Of4h3]} 27. Rfe1 $2 {[%emt 0:00:30][%mdl 8192] [#]} (27. Nb5 $17) 27... Rxh3 $1 $19 {[%emt 0:02:35][%cal Oc8h8]} 28. Nf5+ {[%emt 0:04:27]} (28. Rf1 Rh5) 28... gxf5 {[%emt 0:00:05]} 29. gxh3 {[%emt 0:00:05]} Qc5+ {[%emt 0:01:21]} 30. Kf1 {[%emt 0:00:30]} Rh8 {[%emt 0:00:05]} (30... Nxh3 31. Qh2 Rh8 32. Rxe5 $11) 31. Qf2 {[%emt 0:01:05]} Qe7 {[%emt 0:00:59]} 32. Re3 {[%emt 0:01:19]} (32. Qg1 $142 Nd7 (32... Nxh3 $2 33. Qd4 $19) 33. Nb5) 32... Rxh3 {[%emt 0:00:22]} 33. Qg1 {[%emt 0:00:21]} Kg6 {[%emt 0:00:22] And now ...Qb7 would win.} 34. Ke1 {[%emt 0:00:05] [#]} Ng4 $1 {[%emt 0:00:07][%mdl 512]} 35. fxg4 {[%emt 0:00:13]} Rxe3+ {[%emt 0:00:05]} 36. Kd2 {[%emt 0:00:05]} Re2+ {[%emt 0:00:05]} 37. Kc1 {[%emt 0:00:05]} fxg4 {[%emt 0:00:52]} 38. Qxg4 {[%emt 0:00:05]} Qc5 {[%emt 0:00:47]} 39. Kb1 {[%emt 0:00:15]} Qf2 {[%emt 0:00:11]} 40. Nc4 {[%emt 0:00:05]} dxc4 {[%emt 0:00:07]} 41. Ka1 {[%emt 0:00:05]} Re1 {[%emt 0:00:10]} 42. Ka2 {[%emt 0:00:05]} Rxd1 {[%emt 0:00:05]} 43. Qxd1 {[%emt 0:00:05]} Nd3 {[%emt 0:00:05][%csl Gd3][%cal Rf2b2]} 44. Qb1 {[%emt 0:00:05] [#]} Qxb2+ {[%emt 0:00:05]} 0-1

[Event "Marshall Masters 44"]
[Site "New York"]
[Date "2024.12.18"]
[Round "2.4"]
[White "Lu, Maximillian"]
[Black "Moor, Nathaniel Philip"]
[Result "1-0"]
[ECO "A00"]
[WhiteElo "2404"]
[BlackElo "2250"]
[Annotator "TA"]
[PlyCount "61"]
[EventDate "2024.12.17"]
[EventType "swiss"]
[EventCountry "USA"]
[SourceTitle "playchess.com"]
[Source "ChessBase"]
[SourceQuality "1"]
[TimeMode "Bronstein"]
[TimeControl "1500+5"]

{[%evp 9,61,-3,-9,-12,-5,-4,-7,-18,-7,-15,5,0,0,-37,-29,-45,-23,-37,-27,-28,0,0,4,0,10,0,0,0,0,0,10,7,38,0,0,-8,496,483,488,491,525,514,516,539,630,595,579,514,653,656,634,626,659,652]} 1. a3 {[%emt 0:00:05][%cal Ba2a3,Ba3a4][%mdl 32]} a6 {[%emt 0:00:05]} 2. b4 {[%emt 0:00:37]} b5 {[%emt 0:00:17]} 3. a4 {[%emt 0:00:08]} Bb7 {[%emt 0:00:09]} 4. Nf3 {[%emt 0:00:36]} e6 {[%emt 0:00:26]} 5. axb5 {[%emt 0:00:07]} Bxb4 {[%emt 0:00:22]} 6. bxa6 {[%emt 0:00:56]} Nxa6 {[%emt 0:00:33]} 7. Bb2 {[%emt 0:00:27]} Nf6 {[%emt 0:00:07]} 8. g3 {[%emt 0:00:05]} O-O {[%emt 0:01:32]} 9. Bg2 {[%emt 0:00:05]} Nc5 {[%emt 0:00:20]} 10. Rxa8 {[%emt 0:01:08]} Qxa8 {[%emt 0:00:26]} 11. c3 {[%emt 0:02:09] White is weak on the light squares} Ba5 {[%emt 0:01:22]} 12. Ba3 {[%emt 0:00:05]} d6 {[%emt 0:00:38]} 13. Bxc5 {[%emt 0:00:08]} dxc5 {[%emt 0:00:05]} 14. O-O {[%emt 0:00:24]} Bb6 {[%emt 0:01:23]} 15. c4 {[%emt 0:02:00]} Ba5 {[%emt 0:00:37]} 16. d3 {[%emt 0:01:04]} Bc6 {[%emt 0:01:39]} 17. Qc2 {[%emt 0:01:13]} Bb4 {[%emt 0:01:05]} 18. Nbd2 {[%emt 0:02:13]} Qa3 {[%emt 0:15:24]} 19. Rb1 {[%emt 0:00:49]} Ra8 {[%emt 0:00:00]} 20. Nb3 {[%emt 0:01:19] Black must now prevent Ne5.} Ba4 {[%emt 0:00:00]} 21. Nfd2 {[%emt 0:05:47]} (21. Nfd4 $5 Ra6 22. Nb5 Bxb3 23. Rxb3 $14) 21... Rb8 {[%emt 0:00:00]} 22. Qc1 {[%emt 0:00:37]} Rb6 $2 {[%emt 0:00:00][%mdl 8192]} (22... Qxc1+ $11 {and Black is okay.} 23. Rxc1 Nd7) 23. Qxa3 $18 {[%emt 0:00:28]} Bxa3 {[%emt 0:00:00]} 24. Ra1 $1 {[%emt 0:00:05]} Bxb3 {[%emt 0:00:00]} 25. Rxa3 {[%emt 0:00:05] Threatening mate with Ra8+.} g5 {[%emt 0:00:00]} 26. Nxb3 {[%emt 0:00:06]} Kg7 {[%emt 0:00:00]} 27. h3 {[%emt 0:00:07]} Nd7 {[%emt 0:00:00]} 28. Bf3 {[%emt 0:00:10]} Ne5 {[%emt 0:00:00]} 29. Kg2 {[%emt 0:00:07]} Nd7 {[%emt 0:00:00]} 30. e3 {[%emt 0:00:17]} Kg6 {[%emt 0:00:00]} 31. Bd1 {[%emt 0:00:05]} 1-0

[Event "Marshall Masters 44"]
[Site "New York"]
[Date "2024.12.18"]
[Round "2.5"]
[White "Rohde, Michael"]
[Black "Putnam, Liam"]
[Result "0-1"]
[ECO "D46"]
[WhiteElo "2286"]
[BlackElo "2403"]
[Annotator "TA"]
[PlyCount "109"]
[EventDate "2024.12.17"]
[EventType "swiss"]
[EventCountry "USA"]
[SourceTitle "playchess.com"]
[Source "ChessBase"]
[SourceQuality "1"]
[TimeMode "Bronstein"]
[TimeControl "1500+5"]

{[%evp 16,109,0,0,-4,14,33,56,68,27,31,20,57,0,-10,0,0,-68,-51,-62,-52,-62,-33,-31,-33,-58,-50,-49,-50,-52,-43,-56,-27,-92,-57,-48,-46,-206,-211,-231,-226,-244,-244,-314,-135,-136,-137,-140,-133,-196,-202,-194,-194,-187,-177,-29980,-29981,-29974,-603,-573,-757,-771,-756,-628,-645,-621,-612,-772,-762,-781,-518,-791,-516,-497,-492,-5889,-5073,-5073,-4727,-2096,-1826,-29954,-29956,-29949,-29944,-29975,-29976,-29975,-29978,-29975,-29974,-29981,-29982,-29982,-29983,-29984]} 1. Nf3 {[%emt 0:00:12]} d5 {[%emt 0:00:14]} 2. d4 {[%emt 0:00:11]} Nf6 {[%emt 0:00:05]} 3. c4 {[%emt 0:00:05]} e6 {[%emt 0:00:08]} 4. Nc3 {[%emt 0:00:05]} c6 {[%emt 0:01:01]} 5. e3 {[%emt 0:00:08]} Nbd7 {[%emt 0:00:05]} 6. a3 {[%emt 0:00:07]} Bd6 {[%emt 0:02:20]} 7. Bd3 {[%emt 0:00:05]} dxc4 {[%emt 0:00:08]} 8. Bxc4 {[%emt 0:00:05]} O-O {[%emt 0:00:24]} 9. O-O {[%emt 0:00:05]} b5 {[%emt 0:00:05]} 10. Ba2 {[%emt 0:00:05]} a6 {[%emt 0:01:16]} 11. e4 {[%emt 0:00:36]} e5 {[%emt 0:00:12]} 12. Be3 {[%emt 0:00:26]} Qc7 {[%emt 0:03:44]} 13. h3 {[%emt 0:02:16]} exd4 {[%emt 0:03:18]} 14. Bxd4 {[%emt 0:00:49]} (14. Nxd4 $14 Nc5 15. Qf3) 14... Bb7 $11 {[%emt 0:00:37]} 15. Re1 {[%emt 0:00:32]} Rae8 {[%emt 0:00:53]} 16. Rc1 {[%emt 0:01:00]} ({Better is} 16. b4 $11) 16... c5 $15 {[%emt 0:01:35]} 17. Bxf6 {[%emt 0:00:33]} Nxf6 {[%emt 0:00:05]} 18. Nd5 {[%emt 0:00:16]} Nxd5 {[%emt 0:00:09]} 19. Bxd5 {[%emt 0:00:05]} Rd8 {[%emt 0:00:21]} 20. Qc2 {[%emt 0:01:07]} Bxd5 {[%emt 0:02:15]} 21. exd5 {[%emt 0:00:05]} g6 {[%emt 0:00:09]} 22. Qc3 {[%emt 0:01:19]} Rfe8 {[%emt 0:00:30] Repels Ne5} 23. Qf6 {[%emt 0:00:48]} Re7 {[%emt 0:01:03]} 24. Re3 {[%emt 0:07:57]} (24. Kf1 $11 {remains equal.}) 24... Rde8 {[%emt 0:00:51]} 25. Rce1 {[%emt 0:00:17]} c4 {[%emt 0:00:39]} 26. Ng5 $2 {[%emt 0:02:01]} (26. Rxe7 $15 Rxe7 27. Rd1) 26... Rxe3 $19 {[%emt 0:00:53]} 27. Rxe3 {[%emt 0:00:10]} Rxe3 {[%emt 0:00:11]} 28. fxe3 {[%emt 0:00:05][%mdl 4096] Endgame KQB-KQN} Qe7 {[%emt 0:01:10] Prevents Ne4} 29. Ne4 {[%emt 0:02:41]} Qxe4 {[%emt 0:01:13]} (29... Qxf6 $1 $19 30. Nxf6+ Kf8) 30. Qxd6 {[%emt 0:00:05] [#] KQ-KQ} Qb1+ $1 {[%emt 0:00:05]} 31. Kh2 {[%emt 0:00:15]} Qxb2 {[%emt 0:00:05]} 32. Qe7 {[%emt 0:00:14] [#]} (32. Qf4 $17 {was called for.}) 32... Kg7 $1 {[%emt 0:01:04]} 33. d6 {[%emt 0:00:21] Black must now prevent d7.} Qf6 $1 {[%emt 0:00:05]} (33... Qxa3 $2 34. Qe5+ f6 35. Qe7+ Kg8 36. Qxf6 $18) 34. Kg3 {[%emt 0:02:30]} c3 {[%emt 0:00:06]} ({Not} 34... Qxe7 $2 35. dxe7 a5 36. e8=Q $18 (36. e8=R Kf6 $18)) 35. e4 $2 {[%emt 0:00:05]} (35. Qc7 $19) 35... c2 {[%emt 0:00:11]} (35... Qxe7 36. dxe7 c2 37. e8=Q $17) 36. e5 {[%emt 0:00:05]} Qxe7 {[%emt 0:00:25]} (36... c1=Q $2 37. Qxf6+ (37. exf6+ Kh6 $18) 37... Kg8 38. d7 Qxa3+ 39. Kh2 $18) (36... Qf1 $142 37. Qf6+ Qxf6 38. exf6+ Kxf6 39. h4 c1=Q (39... c1=R $2 40. Kg4 $19) 40. Kh2 Qxa3 (40... Qf4+ $2 41. Kg1 $19) 41. g4 Qxd6+ 42. Kh3 Qd3+ 43. Kg2 Ke5 44. Kh1 Qf1+ 45. Kh2 Kf4 46. h5 Kf3 47. hxg6 Qg2#) 37. dxe7 {[%emt 0:00:05]} c1=Q {[%emt 0:00:05]} (37... c1=R $2 38. e8=Q $18 (38. e8=R $2 {too greedy.} Ra1 $19)) 38. e8=Q {[%emt 0:00:05]} Qxa3+ {[%emt 0:00:05] KQ-KQ. Black is two pawns up.} 39. Kh2 {[%emt 0:00:05]} Qe3 {[%emt 0:00:06]} 40. Qe7 {[%emt 0:00:07] Wards off b4} Qf4+ {[%emt 0:00:05]} 41. Kh1 {[%emt 0:00:05]} Qf5 {[%emt 0:00:05]} 42. Qd6 {[%emt 0:00:06]} Qe6 {[%emt 0:00:05] ( -> ...Qxd6)} 43. Qc5 {[%emt 0:00:06] [#]} (43. Qd4 $142) 43... b4 $1 {[%emt 0:00:05]} 44. Qxb4 {[%emt 0:00:06]} Qxe5 {[%emt 0:00:05] Hoping for ...Qa1+.} 45. Kg1 {[%emt 0:00:07]} (45. Qa3 $142 a5 46. Kg1) 45... a5 {[%emt 0:00:05]} 46. Qa4 {[%emt 0:00:05]} h5 {[%emt 0:00:08]} 47. Kf2 {[%emt 0:00:08] Prevents Qe1+.} Qb2+ {[%emt 0:00:05]} 48. Kf3 {[%emt 0:00:05]} Qb4 {[%emt 0:00:05]} 49. Qa1+ {[%emt 0:00:05]} Kg8 {[%emt 0:00:05]} 50. Qe5 {[%emt 0:00:06]} a4 {[%emt 0:00:11]} 51. Qe8+ {[%emt 0:00:05]} Kg7 {[%emt 0:00:05]} 52. Qe5+ {[%emt 0:00:05]} Kh7 {[%emt 0:00:05]} 53. Qe8 {[%emt 0:00:05]} Qb3+ {[%emt 0:00:05]} 54. Kf4 {[%emt 0:00:05]} a3 {[%emt 0:00:05]} 55. g4 {[%emt 0:00:08]} 0-1

[Event "Marshall Masters 44"]
[Site "New York"]
[Date "2024.12.18"]
[Round "3.1"]
[White "Tang, Andrew"]
[Black "Lu, Maximillian"]
[Result "1-0"]
[ECO "D02"]
[WhiteElo "2527"]
[BlackElo "2404"]
[Annotator "TA"]
[PlyCount "102"]
[EventDate "2024.12.17"]
[EventType "swiss"]
[EventCountry "USA"]
[SourceTitle "playchess.com"]
[Source "ChessBase"]
[SourceQuality "1"]
[TimeMode "Bronstein"]
[TimeControl "1500+5"]

{[%evp 15,102,-6,0,-13,55,46,48,43,66,66,61,64,119,119,119,122,112,116,172,75,104,113,123,118,102,108,146,137,144,132,152,149,159,157,191,177,213,196,198,124,176,174,179,197,180,193,246,84,119,66,75,85,82,14,11,0,0,-27,-27,-27,-14,-55,-58,-56,-8,-51,0,-79,-91,-72,-73,-73,-24,-22,-24,-24,0,0,21,21,44,44,125,125,433,433,429,429,418]} 1. d4 {[%emt 0:00:05]} Nf6 {[%emt 0:00:05]} 2. Nf3 {[%emt 0:00:05]} d5 {[%emt 0:00:11]} 3. Bf4 {[%emt 0:00:05]} c5 {[%emt 0:01:32]} 4. e3 {[%emt 0:00:05]} Nc6 {[%emt 0:00:05]} 5. Nbd2 {[%emt 0:00:05]} e6 {[%emt 0:01:21]} 6. c3 {[%emt 0:00:05]} Bd6 {[%emt 0:00:05]} 7. Bg3 {[%emt 0:00:05]} O-O {[%emt 0:00:07]} 8. Bd3 {[%emt 0:00:05]} b6 {[%emt 0:00:21]} 9. e4 {[%emt 0:00:05]} dxe4 {[%emt 0:01:36]} (9... Be7 $11) 10. Nxe4 $14 {[%emt 0:00:05]} Nxe4 {[%emt 0:02:08]} 11. Bxe4 {[%emt 0:00:05] White is slightly better.} Bb7 {[%emt 0:00:22]} 12. dxc5 {[%emt 0:00:05] White is more active.} Bxc5 {[%emt 0:00:25]} 13. Qa4 {[%emt 0:00:05]} b5 {[%emt 0:06:59]} 14. Qxb5 $16 {[%emt 0:00:37]} Qb6 {[%emt 0:00:12]} 15. Qxb6 {[%emt 0:01:10]} axb6 {[%emt 0:00:19]} 16. Ne5 {[%emt 0:01:49]} Na5 {[%emt 0:01:46]} (16... Nxe5 $16 {might work better.} 17. Bxb7 Ra7) 17. Bc2 {[%emt 0:04:14]} (17. Bxb7 $18 Nxb7 18. Ke2) 17... Nc6 {[%emt 0:02:17]} (17... Bxg2 $2 18. Rg1 Bb7 19. b4 $18) 18. Nd7 {[%emt 0:00:18]} Rfd8 {[%emt 0:00:05]} 19. Nxc5 {[%emt 0:00:05]} bxc5 {[%emt 0:00:05]} 20. f3 $36 {[%emt 0:00:21][%mdl 2048] Keeping Black busy.} Ba6 {[%emt 0:00:11]} 21. Be4 {[%emt 0:00:39] A strong pair of Bishops.} Rac8 {[%emt 0:00:05]} 22. Rd1 {[%emt 0:00:12]} Rxd1+ {[%emt 0:01:12]} 23. Kxd1 {[%emt 0:00:05]} f5 {[%emt 0:00:44]} 24. Bc2 {[%emt 0:00:08]} Kf7 {[%emt 0:00:17]} 25. Kc1 {[%emt 0:00:09]} Kf6 {[%emt 0:00:05]} 26. Rd1 {[%emt 0:00:19]} g5 {[%emt 0:00:28]} 27. Rd7 {[%emt 0:00:21]} ({White should try} 27. b3 $18) 27... Bf1 {[%emt 0:00:20]} (27... f4 $16 {was called for.}) 28. Rxh7 $18 {[%emt 0:01:07]} Bxg2 {[%emt 0:00:28]} 29. Rh6+ {[%emt 0:00:07]} Kf7 {[%emt 0:00:10]} 30. h4 {[%emt 0:00:45]} Rg8 {[%emt 0:01:00]} (30... gxh4 {keeps fighting.} 31. Bxh4 Re8) 31. Bd1 $2 {[%emt 0:01:23]} (31. Bb3 $18 {and White stays clearly on top.} Rg6 32. hxg5 Bxf3 33. Bc7) 31... f4 $16 {[%emt 0:00:06]} 32. Bh2 {[%emt 0:00:58]} (32. Be1 $1 $16) 32... Ne5 $1 $14 {[%emt 0:00:25]} 33. hxg5 {[%emt 0:00:05]} Rxg5 {[%emt 0:00:13]} 34. Rh4 {[%emt 0:00:05]} (34. Bxf4 Nd3+ 35. Kd2 Nxf4 $17) (34. Kc2 $16 Rf5 35. Rh4) 34... Nd3+ $11 {[%emt 0:00:48]} 35. Kd2 {[%emt 0:00:29]} Bf1 {[%emt 0:00:06] And now ...Rg2+ would win.} 36. c4 {[%emt 0:02:24]} (36. Bxf4 $2 Rg2+ 37. Ke3 Nxb2 38. Rh7+ Kg6 39. Rh6+ (39. Rd7 $2 Bb5 $19) 39... Kf7 (39... Kg7 $2 40. Ke4 $19) 40. Rh7+ Kg6 41. Rh6+ (41. Rd7 $2 Bb5 $19) 41... Kg7 $19) 36... Rg2+ {[%emt 0:00:26]} 37. Kc3 {[%emt 0:00:05]} e5 {[%emt 0:00:13][%cal Of7f6]} 38. a3 {[%emt 0:00:49]} (38. Bc2 $2 Nc1 39. Be4 (39. Rh7+ $2 Kg8 $19) 39... Nxa2+ 40. Kb3 Nc1+ 41. Kc3 Ne2+ 42. Kb3 Nd4+ 43. Kc3 Rf2 $19) (38. a4 $5) 38... Nxb2 {[%emt 0:00:07]} 39. Bc2 {[%emt 0:01:00] [#]} Bxc4 {[%emt 0:00:38]} 40. a4 {[%emt 0:00:05][%cal Oh4h5] [#]} (40. Kxb2 $2 Bd3 41. Kc3 Bxc2 42. Bxf4 exf4 $19) (40. Rh5 {simplifies} Be2 41. Bxf4 exf4 42. Kxb2 Bxf3 43. Rf5+) 40... Be6 {[%emt 0:00:13]} 41. a5 {[%emt 0:00:16]} (41. Bxf4 $11 {keeps the balance.} Nxa4+ 42. Bxa4 exf4 43. Bc6) 41... Nc4 $17 {[%emt 0:00:05][%cal Oc4e3] Threatens to win with ...Ne3!} 42. Rh7+ {[%emt 0:00:15]} Kg8 {[%emt 0:00:05]} 43. Rh6 {[%emt 0:00:08] [#]} Ne3 {[%emt 0:00:06]} ({Don't play} 43... Nxa5 $6 44. Rxe6 Rxh2 45. Ra6 $11) (43... Bf7 $1 $17 {[%cal Oc4e3] Strongly threatening ...Ne3!} 44. a6 Ne3) 44. Rg6+ $11 {[%emt 0:00:36]} Rxg6 {[%emt 0:00:05]} 45. Bxg6 {[%emt 0:00:05][%mdl 4096] Endgame. KBB-KBN} Nd5+ {[%emt 0:00:06]} 46. Kd2 {[%emt 0:00:46]} Kg7 {[%emt 0:00:05]} 47. Be4 {[%emt 0:00:10][%mdl 1024] a6 is the strong threat. White has compensation.} Nb4 {[%emt 0:00:05]} 48. Bg1 {[%emt 0:00:09]} Na6 {[%emt 0:00:05] [#]} (48... Kf6 $14) 49. Kc3 $1 $16 {[%emt 0:00:11] Black must now prevent Bb7.} ({Of course not} 49. Bb7 $6 Bc4 $11) 49... Kf6 $2 {[%emt 0:00:05][%mdl 8192]} (49... Bh3 $16 {is tougher.}) 50. Bb7 $18 {[%emt 0:00:05]} Nc7 {[%emt 0:00:05]} 51. Bxc5 {[%emt 0:00:22]} Bd7 {[%emt 0:00:07] Weighted Error Value: White=0.20 (precise) /Black=0.34.  Loses game:     	---       	Black=1      Missed win:     	White=1     	---        Mistake:       	White=5     	Black=9      Inaccurate:     	White=3     	Black=2      OK:         	White=17    	Black=12     Best:        	White=6     	Black=3      Strong:       	White=1     	Black=1} 1-0